[Event "*** Titled Tuesday Blitz"]
[Site "Chess.com"]
[Date "2021.04.27"]
[Round "5"]
[White "korkmaz16"]
[Black "nicoderboss24"]
[Result "1-0"]
[WhiteElo "2419"]
[BlackElo "2252"]
[TimeControl "180+1"]
[EndTime "10:54:41 PDT"]
[Termination "korkmaz16 won by resignation"]

1. e4 {[%clk 0:03:00.9]} 1... c5 {[%clk 0:02:59.1]} 2. Nc3 {[%clk 0:02:57.8]}
2... Nc6 {[%clk 0:02:59.5]} 3. f4 {[%clk 0:02:56.2]} 3... g6 {[%clk 0:02:58]} 4.
Nf3 {[%clk 0:02:56]} 4... Bg7 {[%clk 0:02:58.6]} 5. Bb5 {[%clk 0:02:56.3]} 5...
Nd4 {[%clk 0:02:58]} 6. O-O {[%clk 0:02:56]} 6... Nxb5 {[%clk 0:02:57.5]} 7.
Nxb5 {[%clk 0:02:56.1]} 7... d6 {[%clk 0:02:54.2]} 8. d4 {[%clk 0:02:54.2]} 8...
a6 {[%clk 0:02:49.8]} 9. Nc3 {[%clk 0:02:53.9]} 9... cxd4 {[%clk 0:02:49.3]} 10.
Nxd4 {[%clk 0:02:54.8]} 10... Nf6 {[%clk 0:02:45.3]} 11. f5 {[%clk 0:02:46.7]}
11... O-O {[%clk 0:02:37.9]} 12. Be3 {[%clk 0:02:41.3]} 12... Qc7 {[%clk
0:02:18.8]} 13. Kh1 {[%clk 0:02:37.6]} 13... b5 {[%clk 0:02:10.3]} 14. a3 {[%clk
0:02:31.3]} 14... Bb7 {[%clk 0:02:09.9]} 15. Qd3 {[%clk 0:02:31]} 15... Rac8
{[%clk 0:02:01.2]} 16. Rae1 {[%clk 0:02:23.1]} 16... Nd7 {[%clk 0:02:01.1]} 17.
Bg5 {[%clk 0:02:19.2]} 17... Ne5 {[%clk 0:01:53.5]} 18. Qh3 {[%clk 0:02:15]}
18... Nc4 {[%clk 0:01:35.6]} 19. f6 {[%clk 0:02:12.3]} 19... exf6 {[%clk
0:01:31.6]} 20. Bxf6 {[%clk 0:02:12.3]} 20... Nxb2 {[%clk 0:01:20.2]} 21. Nd5
{[%clk 0:02:06.6]} 21... Bxd5 {[%clk 0:01:15.9]} 22. exd5 {[%clk 0:02:07.5]}
22... Bxf6 {[%clk 0:01:07.8]} 23. Rxf6 {[%clk 0:02:06.5]} 23... Qc3 {[%clk
0:01:08.4]} 24. Qxc3 {[%clk 0:01:45.7]} 24... Rxc3 {[%clk 0:01:09.3]} 25. Rxd6
{[%clk 0:01:46]} 25... Rxa3 {[%clk 0:00:59]} 26. Rd7 {[%clk 0:01:41.4]} 26...
Nc4 {[%clk 0:00:51.1]} 27. h4 {[%clk 0:01:36.1]} 27... h5 {[%clk 0:00:47.9]} 28.
d6 {[%clk 0:01:34.1]} 28... Nb6 {[%clk 0:00:34.2]} 29. Rb7 {[%clk 0:01:32.2]}
29... Nd5 {[%clk 0:00:26]} 30. d7 {[%clk 0:01:31.2]} 30... Rc3 {[%clk
0:00:17.9]} 31. Re8 {[%clk 0:01:30]} 31... Nc7 {[%clk 0:00:15.6]} 32. Rxc7
{[%clk 0:01:28]} 32... Rxc7 {[%clk 0:00:16.5]} 33. Rxf8+ {[%clk 0:01:27.9]} 1-0

[Event "*** Titled Tuesday Blitz"]
[Site "Chess.com"]
[Date "2021.04.27"]
[Round "5"]
[White "AungTZ"]
[Black "NiranjanNavalgund"]
[Result "0-1"]
[WhiteElo "2165"]
[BlackElo "2473"]
[TimeControl "180+1"]
[EndTime "10:54:42 PDT"]
[Termination "NiranjanNavalgund won by resignation"]

1. e4 {[%clk 0:02:31]} 1... e5 {[%clk 0:02:57.9]} 2. Nf3 {[%clk 0:02:30.4]} 2...
Nc6 {[%clk 0:02:58.2]} 3. d4 {[%clk 0:02:30.8]} 3... exd4 {[%clk 0:02:58.1]} 4.
Nxd4 {[%clk 0:02:31.4]} 4... Bc5 {[%clk 0:02:57.7]} 5. Nb3 {[%clk 0:02:30.7]}
5... Bb6 {[%clk 0:02:57.5]} 6. a4 {[%clk 0:02:31.2]} 6... a5 {[%clk 0:02:56.7]}
7. Bc4 {[%clk 0:02:27.7]} 7... Nf6 {[%clk 0:02:56.6]} 8. Nc3 {[%clk 0:02:27]}
8... h6 {[%clk 0:02:51.3]} 9. O-O {[%clk 0:02:26.3]} 9... O-O {[%clk 0:02:51.1]}
10. Kh1 {[%clk 0:02:21.3]} 10... d6 {[%clk 0:02:50.2]} 11. h3 {[%clk 0:02:17.7]}
11... Be6 {[%clk 0:02:45.5]} 12. Bd5 {[%clk 0:01:55.2]} 12... Bxd5 {[%clk
0:02:37.4]} 13. exd5 {[%clk 0:01:54.2]} 13... Ne7 {[%clk 0:02:38.3]} 14. Be3
{[%clk 0:01:48.8]} 14... Bxe3 {[%clk 0:02:34.3]} 15. fxe3 {[%clk 0:01:49.2]}
15... Ng6 {[%clk 0:02:35.2]} 16. e4 {[%clk 0:01:46.4]} 16... Qe7 {[%clk
0:02:33.4]} 17. Qd3 {[%clk 0:01:44.1]} 17... Qe5 {[%clk 0:02:32.3]} 18. Rf5
{[%clk 0:01:38.1]} 18... Qe7 {[%clk 0:02:31.5]} 19. Raf1 {[%clk 0:01:23]} 19...
Nh7 {[%clk 0:02:31.4]} 20. Nd4 {[%clk 0:01:18.8]} 20... Ne5 {[%clk 0:02:28]} 21.
Qe2 {[%clk 0:01:09.4]} 21... g6 {[%clk 0:02:20.9]} 22. R5f4 {[%clk 0:01:01.2]}
22... Kh8 {[%clk 0:02:15.5]} 23. b3 {[%clk 0:00:58.5]} 23... Qg5 {[%clk
0:02:10.2]} 24. Qf2 {[%clk 0:00:53.9]} 24... Kg8 {[%clk 0:02:05.4]} 25. Ncb5
{[%clk 0:00:43.1]} 25... Qe7 {[%clk 0:02:05.1]} 26. c4 {[%clk 0:00:30.8]} 26...
Nd3 {[%clk 0:02:00.7]} 27. Qe3 {[%clk 0:00:30.8]} 27... Nxf4 {[%clk 0:02:00.4]}
28. Qxf4 {[%clk 0:00:31]} 28... Rae8 {[%clk 0:01:56.9]} 29. Nc3 {[%clk
0:00:25.2]} 29... Qg5 {[%clk 0:01:56.2]} 30. Qf2 {[%clk 0:00:24.3]} 30... Kg7
{[%clk 0:01:55.6]} 31. Ndb5 {[%clk 0:00:22.2]} 31... Qe5 {[%clk 0:01:52]} 32.
Nxc7 {[%clk 0:00:16.4]} 32... Re7 {[%clk 0:01:46.7]} 33. N7b5 {[%clk 0:00:15.1]}
33... f5 {[%clk 0:01:47]} 34. Nd4 {[%clk 0:00:12.7]} 34... fxe4 {[%clk
0:01:44.4]} 35. Qe1 {[%clk 0:00:05.7]} 35... Rxf1+ {[%clk 0:01:45.3]} 36. Qxf1
{[%clk 0:00:05.7]} 36... Qxd4 {[%clk 0:01:45.9]} 0-1

[Event "*** Titled Tuesday Blitz"]
[Site "Chess.com"]
[Date "2021.04.27"]
[Round "5"]
[White "harlem4brew"]
[Black "BahadirOzen"]
[Result "1-0"]
[WhiteElo "2408"]
[BlackElo "2661"]
[TimeControl "180+1"]
[EndTime "10:54:44 PDT"]
[Termination "harlem4brew won by resignation"]

1. e4 {[%clk 0:03:00.9]} 1... g6 {[%clk 0:03:00]} 2. Nf3 {[%clk 0:03:00.5]} 2...
d6 {[%clk 0:02:58.6]} 3. d4 {[%clk 0:03:00.4]} 3... Nf6 {[%clk 0:02:58.8]} 4.
Nc3 {[%clk 0:02:59.6]} 4... Bg7 {[%clk 0:02:58.9]} 5. Be2 {[%clk 0:02:58.8]}
5... O-O {[%clk 0:02:58.7]} 6. O-O {[%clk 0:02:58.6]} 6... e6 {[%clk 0:02:59]}
7. h3 {[%clk 0:02:58.7]} 7... Nc6 {[%clk 0:02:59]} 8. Be3 {[%clk 0:02:57.9]}
8... h6 {[%clk 0:02:58.6]} 9. Qd2 {[%clk 0:02:57.1]} 9... Kh7 {[%clk 0:02:58.8]}
10. Rad1 {[%clk 0:02:56.4]} 10... a6 {[%clk 0:02:57.7]} 11. a4 {[%clk
0:02:55.8]} 11... b6 {[%clk 0:02:57.7]} 12. Rfe1 {[%clk 0:02:55.3]} 12... Bb7
{[%clk 0:02:57.6]} 13. d5 {[%clk 0:02:54.5]} 13... exd5 {[%clk 0:02:55.4]} 14.
exd5 {[%clk 0:02:53.9]} 14... Ne7 {[%clk 0:02:55.5]} 15. Bc4 {[%clk 0:02:51.7]}
15... b5 {[%clk 0:02:52]} 16. axb5 {[%clk 0:02:50.1]} 16... axb5 {[%clk
0:02:52.9]} 17. Bxb5 {[%clk 0:02:47.7]} 17... Nexd5 {[%clk 0:02:43.6]} 18. Nxd5
{[%clk 0:02:45.5]} 18... Bxd5 {[%clk 0:02:30.6]} 19. Nd4 {[%clk 0:02:38.7]}
19... Qb8 {[%clk 0:02:16.4]} 20. c4 {[%clk 0:02:30.5]} 20... Bb7 {[%clk
0:02:07.3]} 21. Nc6 {[%clk 0:02:23.9]} 21... Qc8 {[%clk 0:01:54.3]} 22. b4
{[%clk 0:01:56.3]} 22... Qf5 {[%clk 0:01:41.1]} 23. Bd4 {[%clk 0:01:51]} 23...
Ng8 {[%clk 0:01:21.4]} 24. Na5 {[%clk 0:01:39]} 24... Bc8 {[%clk 0:01:02.2]} 25.
Bc6 {[%clk 0:01:35]} 25... Ra6 {[%clk 0:00:47.5]} 26. b5 {[%clk 0:01:18.5]}
26... Bxd4 {[%clk 0:00:44.5]} 27. bxa6 {[%clk 0:01:17.3]} 27... Bxf2+ {[%clk
0:00:42.9]} 28. Qxf2 {[%clk 0:01:16.5]} 28... Qxa5 {[%clk 0:00:43.4]} 29. Re8
{[%clk 0:01:12.4]} 29... Rxe8 {[%clk 0:00:35.3]} 30. Qxf7+ {[%clk 0:01:12]}
30... Kh8 {[%clk 0:00:36.2]} 31. Qxe8 {[%clk 0:01:08.8]} 1-0

[Event "*** Titled Tuesday Blitz"]
[Site "Chess.com"]
[Date "2021.04.27"]
[Round "5"]
[White "Zq1"]
[Black "platy3"]
[Result "0-1"]
[WhiteElo "2543"]
[BlackElo "2853"]
[TimeControl "180+1"]
[EndTime "10:54:50 PDT"]
[Termination "platy3 won by resignation"]

1. Nf3 {[%clk 0:03:00.9]} 1... Nf6 {[%clk 0:02:57.7]} 2. c4 {[%clk 0:02:59.8]}
2... e6 {[%clk 0:02:57.6]} 3. Nc3 {[%clk 0:02:59]} 3... d5 {[%clk 0:02:57.5]} 4.
d4 {[%clk 0:02:58.8]} 4... dxc4 {[%clk 0:02:57.8]} 5. Bg5 {[%clk 0:02:52.5]}
5... a6 {[%clk 0:02:57]} 6. e4 {[%clk 0:02:44.5]} 6... b5 {[%clk 0:02:54]} 7. e5
{[%clk 0:02:43.8]} 7... h6 {[%clk 0:02:53.4]} 8. Bh4 {[%clk 0:02:39.3]} 8... g5
{[%clk 0:02:53.5]} 9. Nxg5 {[%clk 0:02:36.6]} 9... hxg5 {[%clk 0:02:52.6]} 10.
Bxg5 {[%clk 0:02:36.8]} 10... Nbd7 {[%clk 0:02:53]} 11. Qf3 {[%clk 0:02:29.3]}
11... Rb8 {[%clk 0:02:44]} 12. Ne4 {[%clk 0:02:18.7]} 12... Bb4+ {[%clk
0:02:16.1]} 13. Ke2 {[%clk 0:02:12.9]} 13... Bb7 {[%clk 0:01:37.1]} 14. Nxf6+
{[%clk 0:02:08.6]} 14... Nxf6 {[%clk 0:01:37]} 15. Qxf6 {[%clk 0:02:07.8]} 15...
Qxd4 {[%clk 0:01:20.3]} 16. Rd1 {[%clk 0:01:30.9]} 16... Qe4+ {[%clk 0:01:07.1]}
17. Be3 {[%clk 0:01:29.3]} 17... Rg8 {[%clk 0:00:58.2]} 18. h4 {[%clk
0:00:37.1]} 18... Qc2+ {[%clk 0:00:56.6]} 19. Bd2 {[%clk 0:00:36.4]} 19... Rd8
{[%clk 0:00:52.9]} 20. Qf4 {[%clk 0:00:27.8]} 20... Rg4 {[%clk 0:00:42.2]} 0-1

[Event "*** Titled Tuesday Blitz"]
[Site "Chess.com"]
[Date "2021.04.27"]
[Round "5"]
[White "Alex-11211"]
[Black "Kildepiotr"]
[Result "1-0"]
[WhiteElo "2450"]
[BlackElo "2627"]
[TimeControl "180+1"]
[EndTime "10:54:57 PDT"]
[Termination "Alex-11211 won by resignation"]

1. e4 {[%clk 0:03:00.9]} 1... g6 {[%clk 0:02:59.7]} 2. d4 {[%clk 0:02:58.9]}
2... Bg7 {[%clk 0:03:00]} 3. Nc3 {[%clk 0:02:59.2]} 3... c6 {[%clk 0:02:59.9]}
4. Nf3 {[%clk 0:02:58.6]} 4... d6 {[%clk 0:02:59.5]} 5. a4 {[%clk 0:02:46.4]}
5... Nf6 {[%clk 0:02:59.2]} 6. Be3 {[%clk 0:02:40.9]} 6... O-O {[%clk
0:02:58.6]} 7. Qd2 {[%clk 0:02:39.2]} 7... Nbd7 {[%clk 0:02:58.3]} 8. Bh6 {[%clk
0:02:35.7]} 8... e5 {[%clk 0:02:57.5]} 9. Bxg7 {[%clk 0:02:26.5]} 9... Kxg7
{[%clk 0:02:58.4]} 10. Bc4 {[%clk 0:02:26]} 10... Qe7 {[%clk 0:02:56.2]} 11. O-O
{[%clk 0:02:24.2]} 11... b6 {[%clk 0:02:46.8]} 12. h3 {[%clk 0:02:21]} 12... Bb7
{[%clk 0:02:44.6]} 13. Rfe1 {[%clk 0:02:18]} 13... a6 {[%clk 0:02:44]} 14. Bd3
{[%clk 0:01:49.9]} 14... b5 {[%clk 0:02:42.5]} 15. Ne2 {[%clk 0:01:48.1]} 15...
exd4 {[%clk 0:02:34.9]} 16. axb5 {[%clk 0:01:47.8]} 16... c5 {[%clk 0:02:25.4]}
17. bxa6 {[%clk 0:01:05.3]} 17... Bxe4 {[%clk 0:02:23.8]} 18. Ng3 {[%clk
0:01:00.8]} 18... d5 {[%clk 0:02:24]} 19. Ng5 {[%clk 0:00:38.4]} 19... Qd6
{[%clk 0:02:02.1]} 20. N5xe4 {[%clk 0:00:25.8]} 20... dxe4 {[%clk 0:02:03]} 21.
Nxe4 {[%clk 0:00:26.6]} 21... Nxe4 {[%clk 0:02:02.4]} 22. Rxe4 {[%clk
0:00:27.5]} 22... Nf6 {[%clk 0:02:00]} 23. Ree1 {[%clk 0:00:23.6]} 23... Nd5
{[%clk 0:01:54.7]} 24. Qg5 {[%clk 0:00:20.6]} 24... Nb4 {[%clk 0:01:49.9]} 25.
Qe5+ {[%clk 0:00:15.9]} 25... Qxe5 {[%clk 0:01:49.7]} 26. Rxe5 {[%clk
0:00:16.8]} 26... Rfc8 {[%clk 0:01:49.4]} 27. Bc4 {[%clk 0:00:14.8]} 27... Ra7
{[%clk 0:01:41.9]} 28. c3 {[%clk 0:00:13.4]} 28... dxc3 {[%clk 0:01:22.9]} 29.
bxc3 {[%clk 0:00:14.3]} 29... Nc6 {[%clk 0:01:22.9]} 30. Rxc5 {[%clk 0:00:14.8]}
30... Rcc7 {[%clk 0:01:16.2]} 31. Bd5 {[%clk 0:00:12.5]} 31... Nd8 {[%clk
0:01:12.7]} 32. Rxc7 {[%clk 0:00:13.1]} 32... Rxc7 {[%clk 0:01:12.8]} 33. a7
{[%clk 0:00:13.6]} 1-0

[Event "*** Titled Tuesday Blitz"]
[Site "Chess.com"]
[Date "2021.04.27"]
[Round "5"]
[White "Karttunen"]
[Black "chessbia"]
[Result "1-0"]
[WhiteElo "2512"]
[BlackElo "2336"]
[TimeControl "180+1"]
[EndTime "10:54:57 PDT"]
[Termination "Karttunen won by resignation"]

1. e4 {[%clk 0:03:00.9]} 1... e5 {[%clk 0:02:58.6]} 2. Nf3 {[%clk 0:02:58.2]}
2... Nc6 {[%clk 0:02:58.2]} 3. Bb5 {[%clk 0:02:56.1]} 3... a6 {[%clk 0:02:57.9]}
4. Ba4 {[%clk 0:02:54.9]} 4... Nf6 {[%clk 0:02:58]} 5. O-O {[%clk 0:02:53.2]}
5... Be7 {[%clk 0:02:58.6]} 6. Re1 {[%clk 0:02:51.3]} 6... b5 {[%clk 0:02:59.2]}
7. Bb3 {[%clk 0:02:50.1]} 7... d6 {[%clk 0:02:59.9]} 8. c3 {[%clk 0:02:46.5]}
8... O-O {[%clk 0:02:59.9]} 9. h3 {[%clk 0:02:46]} 9... Bb7 {[%clk 0:02:54.4]}
10. d4 {[%clk 0:02:42.7]} 10... Re8 {[%clk 0:02:53.2]} 11. Ng5 {[%clk
0:02:38.5]} 11... Rf8 {[%clk 0:02:52.3]} 12. Nf3 {[%clk 0:02:37.2]} 12... Re8
{[%clk 0:02:51.7]} 13. Nbd2 {[%clk 0:02:36.7]} 13... exd4 {[%clk 0:02:51.2]} 14.
cxd4 {[%clk 0:02:35.7]} 14... Na5 {[%clk 0:02:51.2]} 15. Bc2 {[%clk 0:02:34.2]}
15... c5 {[%clk 0:02:51.4]} 16. d5 {[%clk 0:02:28.2]} 16... Nd7 {[%clk
0:02:48.8]} 17. Nf1 {[%clk 0:02:19.1]} 17... Bf6 {[%clk 0:02:44.3]} 18. Rb1
{[%clk 0:02:17.4]} 18... Rc8 {[%clk 0:02:37.5]} 19. Ne3 {[%clk 0:02:07.1]} 19...
Nf8 {[%clk 0:02:21.1]} 20. b3 {[%clk 0:01:58.4]} 20... Bc3 {[%clk 0:01:50.9]}
21. Bd2 {[%clk 0:01:52.1]} 21... Bxd2 {[%clk 0:01:34.9]} 22. Qxd2 {[%clk
0:01:48.5]} 22... Ng6 {[%clk 0:01:19.3]} 23. Nf5 {[%clk 0:01:41.9]} 23... b4
{[%clk 0:01:17.8]} 24. a3 {[%clk 0:01:18]} 24... Qb6 {[%clk 0:00:45.6]} 25. Ra1
{[%clk 0:01:10.1]} 25... c4 {[%clk 0:00:39.3]} 26. Qxb4 {[%clk 0:01:02]} 26...
Qxb4 {[%clk 0:00:38.1]} 27. axb4 {[%clk 0:01:01.6]} 27... Nxb3 {[%clk
0:00:38.7]} 28. Bxb3 {[%clk 0:00:59.8]} 28... cxb3 {[%clk 0:00:39.6]} 29. Nxd6
{[%clk 0:00:59.9]} 29... Rb8 {[%clk 0:00:34.1]} 30. Nxe8 {[%clk 0:00:56.4]}
30... Rxe8 {[%clk 0:00:33.4]} 31. Rab1 {[%clk 0:00:56]} 1-0

[Event "*** Titled Tuesday Blitz"]
[Site "Chess.com"]
[Date "2021.04.27"]
[Round "5"]
[White "dozer80"]
[Black "The_Machine04"]
[Result "0-1"]
[WhiteElo "2633"]
[BlackElo "2457"]
[TimeControl "180+1"]
[EndTime "10:54:58 PDT"]
[Termination "The_Machine04 won by checkmate"]

1. e4 {[%clk 0:03:00.9]} 1... d6 {[%clk 0:02:59.1]} 2. d4 {[%clk 0:02:58.7]}
2... Nf6 {[%clk 0:02:59.2]} 3. Nc3 {[%clk 0:02:57.8]} 3... e5 {[%clk 0:02:59.4]}
4. Nf3 {[%clk 0:02:56.8]} 4... Nbd7 {[%clk 0:02:59.3]} 5. Bc4 {[%clk 0:02:56.4]}
5... Be7 {[%clk 0:02:59.4]} 6. a4 {[%clk 0:02:54.3]} 6... c6 {[%clk 0:02:59.7]}
7. h3 {[%clk 0:02:49]} 7... h6 {[%clk 0:02:59.9]} 8. a5 {[%clk 0:02:48.6]} 8...
Qc7 {[%clk 0:03:00.2]} 9. O-O {[%clk 0:02:35.8]} 9... Nf8 {[%clk 0:03:00.2]} 10.
Re1 {[%clk 0:02:30.2]} 10... g5 {[%clk 0:02:59.7]} 11. d5 {[%clk 0:02:28]} 11...
Ng6 {[%clk 0:02:58.9]} 12. Nd2 {[%clk 0:02:27.4]} 12... g4 {[%clk 0:02:57.4]}
13. hxg4 {[%clk 0:02:25.9]} 13... Bxg4 {[%clk 0:02:58.3]} 14. f3 {[%clk
0:02:26.4]} 14... Bd7 {[%clk 0:02:56.2]} 15. a6 {[%clk 0:02:25.2]} 15... Qb6+
{[%clk 0:02:49.8]} 16. Kf1 {[%clk 0:02:24.6]} 16... Nh5 {[%clk 0:02:39.1]} 17.
g4 {[%clk 0:02:19.9]} 17... Ngf4 {[%clk 0:02:27.1]} 18. Ne2 {[%clk 0:02:10.9]}
18... Nh3 {[%clk 0:02:17.1]} 19. Kg2 {[%clk 0:02:03.1]} 19... N5f4+ {[%clk
0:02:12.9]} 20. Nxf4 {[%clk 0:02:02.8]} 20... Nxf4+ {[%clk 0:02:13.8]} 21. Kf1
{[%clk 0:02:02.7]} 21... Nh3 {[%clk 0:01:36]} 22. Kg2 {[%clk 0:01:57.5]} 22...
Qf2+ {[%clk 0:01:30]} 23. Kh1 {[%clk 0:01:56.4]} 23... h5 {[%clk 0:00:53.4]} 24.
g5 {[%clk 0:01:56.1]} 24... Nf4 {[%clk 0:00:37.4]} 25. Re2 {[%clk 0:01:51]}
25... Nxe2 {[%clk 0:00:22.7]} 26. Qxe2 {[%clk 0:01:51.9]} 26... Qxe2 {[%clk
0:00:22.4]} 27. Bxe2 {[%clk 0:01:52.2]} 27... b6 {[%clk 0:00:20.5]} 28. dxc6
{[%clk 0:01:51.5]} 28... Bxc6 {[%clk 0:00:21.4]} 29. Nc4 {[%clk 0:01:51.9]}
29... Rg8 {[%clk 0:00:21.3]} 30. Be3 {[%clk 0:01:47.6]} 30... Kd7 {[%clk
0:00:19.7]} 31. Rd1 {[%clk 0:01:47]} 31... Kc7 {[%clk 0:00:19.9]} 32. f4 {[%clk
0:01:43.9]} 32... exf4 {[%clk 0:00:18.3]} 33. Bxf4 {[%clk 0:01:43.8]} 33...
Bxe4+ {[%clk 0:00:18.9]} 34. Kh2 {[%clk 0:01:43.8]} 34... Rad8 {[%clk
0:00:19.3]} 35. Na3 {[%clk 0:01:42.7]} 35... Bc6 {[%clk 0:00:17.9]} 36. Bc4
{[%clk 0:01:42.9]} 36... Bxg5 {[%clk 0:00:16.6]} 37. Bg3 {[%clk 0:01:39.8]}
37... h4 {[%clk 0:00:16.1]} 38. Bf2 {[%clk 0:01:37.5]} 38... Bf6 {[%clk
0:00:15.9]} 39. Bf1 {[%clk 0:01:34.5]} 39... Be5+ {[%clk 0:00:15.7]} 40. Kh3
{[%clk 0:01:35]} 40... Bd7+ {[%clk 0:00:14.8]} 41. Kxh4 {[%clk 0:01:33.6]} 41...
Rg4+ {[%clk 0:00:15.5]} 42. Kh5 {[%clk 0:01:33.6]} 42... Rh8# {[%clk 0:00:16.4]}
0-1

[Event "*** Titled Tuesday Blitz"]
[Site "Chess.com"]
[Date "2021.04.27"]
[Round "5"]
[White "alexrustemov"]
[Black "TigrVShlyape"]
[Result "1/2-1/2"]
[WhiteElo "2598"]
[BlackElo "2818"]
[TimeControl "180+1"]
[EndTime "10:55:00 PDT"]
[Termination "Game drawn by agreement"]

1. d4 {[%clk 0:03:00.9]} 1... Nf6 {[%clk 0:02:59.1]} 2. c4 {[%clk 0:03:00.4]}
2... e6 {[%clk 0:02:59]} 3. Nf3 {[%clk 0:03:00.1]} 3... b6 {[%clk 0:02:58.6]} 4.
a3 {[%clk 0:02:59]} 4... c6 {[%clk 0:02:54.9]} 5. Nc3 {[%clk 0:02:54.6]} 5... d5
{[%clk 0:02:54.9]} 6. cxd5 {[%clk 0:02:53.6]} 6... cxd5 {[%clk 0:02:54.6]} 7.
Bf4 {[%clk 0:02:46.9]} 7... Bd6 {[%clk 0:02:52.6]} 8. Bxd6 {[%clk 0:02:31.9]}
8... Qxd6 {[%clk 0:02:51.8]} 9. Nb5 {[%clk 0:02:32.4]} 9... Qd8 {[%clk
0:02:23.6]} 10. Rc1 {[%clk 0:02:29.8]} 10... Na6 {[%clk 0:02:18.1]} 11. e3
{[%clk 0:02:21.4]} 11... O-O {[%clk 0:02:17.3]} 12. Bd3 {[%clk 0:02:21.1]} 12...
Bb7 {[%clk 0:02:11]} 13. O-O {[%clk 0:02:19.6]} 13... Qe7 {[%clk 0:02:03.6]} 14.
Qa4 {[%clk 0:02:04.8]} 14... Rfc8 {[%clk 0:01:49.2]} 15. Rxc8+ {[%clk
0:02:03.1]} 15... Bxc8 {[%clk 0:01:49]} 16. Rc1 {[%clk 0:02:01.4]} 16... Bb7
{[%clk 0:01:43.6]} 17. Ne5 {[%clk 0:01:54.7]} 17... Ne8 {[%clk 0:01:30.5]} 18.
Nc6 {[%clk 0:01:43]} 18... Bxc6 {[%clk 0:01:29.1]} 19. Rxc6 {[%clk 0:01:41.3]}
19... Nac7 {[%clk 0:01:14.3]} 20. Nxc7 {[%clk 0:01:23.5]} 20... Nxc7 {[%clk
0:01:12.6]} 21. Ba6 {[%clk 0:01:12.9]} 21... Ne8 {[%clk 0:01:07.3]} 22. Qc2
{[%clk 0:01:06.8]} 22... g6 {[%clk 0:01:03.5]} 23. g3 {[%clk 0:01:06.7]} 23...
Rd8 {[%clk 0:00:59.8]} 24. Bd3 {[%clk 0:00:56.5]} 24... Kg7 {[%clk 0:00:58]} 25.
b4 {[%clk 0:00:52.8]} 25... Rd7 {[%clk 0:00:57.4]} 26. Qc3 {[%clk 0:00:49.4]}
26... Rc7 {[%clk 0:00:56.7]} 27. Kf1 {[%clk 0:00:39.6]} 27... Qd7 {[%clk
0:00:50.9]} 28. Rxc7 {[%clk 0:00:32]} 28... Qxc7 {[%clk 0:00:48.7]} 29. Qxc7
{[%clk 0:00:30.7]} 29... Nxc7 {[%clk 0:00:48.7]} 30. Ke2 {[%clk 0:00:30.3]}
1/2-1/2

[Event "*** Titled Tuesday Blitz"]
[Site "Chess.com"]
[Date "2021.04.27"]
[Round "5"]
[White "ukchessbomber"]
[Black "Homino"]
[Result "1-0"]
[WhiteElo "2512"]
[BlackElo "2327"]
[TimeControl "180+1"]
[EndTime "10:55:07 PDT"]
[Termination "ukchessbomber won on time"]

1. Nf3 {[%clk 0:03:00.9]} 1... c5 {[%clk 0:02:59.7]} 2. b3 {[%clk 0:02:57.5]}
2... Nf6 {[%clk 0:02:54.2]} 3. Bb2 {[%clk 0:02:58.4]} 3... g6 {[%clk 0:02:52.9]}
4. e3 {[%clk 0:02:58.2]} 4... Bg7 {[%clk 0:02:52.9]} 5. Be2 {[%clk 0:02:59.1]}
5... O-O {[%clk 0:02:52.8]} 6. O-O {[%clk 0:02:59.5]} 6... d5 {[%clk 0:02:53]}
7. d4 {[%clk 0:02:59.1]} 7... cxd4 {[%clk 0:02:52.2]} 8. exd4 {[%clk 0:03:00]}
8... Nc6 {[%clk 0:02:51.9]} 9. Nbd2 {[%clk 0:03:00.9]} 9... a5 {[%clk
0:02:45.4]} 10. a3 {[%clk 0:02:58.6]} 10... Be6 {[%clk 0:02:40.5]} 11. c4 {[%clk
0:02:54.5]} 11... a4 {[%clk 0:02:32.9]} 12. c5 {[%clk 0:02:45.1]} 12... axb3
{[%clk 0:02:29.4]} 13. Nxb3 {[%clk 0:02:42.2]} 13... Ne4 {[%clk 0:02:18.8]} 14.
Nfd2 {[%clk 0:02:05.4]} 14... b6 {[%clk 0:01:53.2]} 15. Nxe4 {[%clk 0:01:49.7]}
15... dxe4 {[%clk 0:01:52.2]} 16. Bb5 {[%clk 0:01:47.6]} 16... Bxb3 {[%clk
0:01:30.5]} 17. Qxb3 {[%clk 0:01:48.5]} 17... Nxd4 {[%clk 0:01:28.7]} 18. Qc4
{[%clk 0:01:48.3]} 18... bxc5 {[%clk 0:00:36]} 19. Rad1 {[%clk 0:01:25.3]} 19...
Qb6 {[%clk 0:00:27.3]} 20. a4 {[%clk 0:01:20.9]} 20... Nxb5 {[%clk 0:00:15.2]}
21. Bxg7 {[%clk 0:01:21.8]} 21... Kxg7 {[%clk 0:00:12.6]} 22. axb5 {[%clk
0:01:21.5]} 22... f5 {[%clk 0:00:11]} 23. Rd7 {[%clk 0:01:20.7]} 23... Rf7
{[%clk 0:00:10.8]} 24. Qc3+ {[%clk 0:01:15.5]} 24... Kg8 {[%clk 0:00:10.9]} 25.
Qb3 {[%clk 0:01:16]} 25... Qf6 {[%clk 0:00:06]} 26. b6 {[%clk 0:01:14.6]} 26...
Rb8 {[%clk 0:00:05.8]} 27. b7 {[%clk 0:01:14.3]} 27... Kg7 {[%clk 0:00:04.5]}
28. Rfd1 {[%clk 0:01:13.7]} 28... e6 {[%clk 0:00:03]} 29. g3 {[%clk 0:01:09.6]}
29... c4 {[%clk 0:00:01.1]} 30. Qb6 {[%clk 0:01:07.9]} 1-0